[Event "Titled Tuesday Blitz February 15 Early 2022"]
[White "Atakhan, Abtin"]
[Black "Samunenkov, Ihor"]
[WhiteFideId "22502203"]
[BlackFideId "14187086"]
[WhiteElo "2119"]
[BlackElo "2406"]
[Result "0-1"]
[Round "09"]
[TimeControl "180+1"]
[Date "2022.02.15"]
[WhiteClock "0:00:02"]
[BlackClock "0:00:23"]

1. Nf3 {[%clk 0:03:00]}  c5 {[%clk 0:02:58]} 2. c4 {[%clk 0:03:00]}  Nc6 {[%clk 0:02:59]} 3. Nc3 {[%clk 0:03:01]}  e5 {[%clk 0:02:59]} 4. e3 {[%clk 0:03:01]}  Nf6 {[%clk 0:02:59]} 5. d4 {[%clk 0:03:02]}  e4 {[%clk 0:03:00]} 6. d5 {[%clk 0:03:02]}  exf3 {[%clk 0:03:00]} 7. dxc6 {[%clk 0:03:02]}  dxc6 {[%clk 0:03:00]} 8. Qxd8+ {[%clk 0:03:01]}  Kxd8 {[%clk 0:03:00]} 9. gxf3 {[%clk 0:02:58]}  Kc7 {[%clk 0:02:57]} 10. b3 {[%clk 0:02:55]}  Be7 {[%clk 0:02:52]} 11. Bb2 {[%clk 0:02:55]}  Rd8 {[%clk 0:02:53]} 12. Rg1 {[%clk 0:02:48]}  g6 {[%clk 0:02:49]} 13. f4 {[%clk 0:02:41]}  Bf5 {[%clk 0:02:35]} 14. f3 {[%clk 0:02:41]}  Nh5 {[%clk 0:02:33]} 15. Ne2 {[%clk 0:02:08]}  Rd3 {[%clk 0:01:54]} 16. Ng3 {[%clk 0:01:25]}  Rxe3+ {[%clk 0:01:44]} 17. Kf2 {[%clk 0:01:24]}  Re6 {[%clk 0:01:44]} 18. Nxf5 {[%clk 0:00:38]}  gxf5 {[%clk 0:01:45]} 19. Kg2 {[%clk 0:00:08]}  Rg8+ {[%clk 0:01:37]} 20. Kh1 {[%clk 0:00:08]}  Rxg1+ {[%clk 0:01:38]} 21. Kxg1 {[%clk 0:00:09]}  Nxf4 {[%clk 0:01:38]} 22. Rd1 {[%clk 0:00:06]}  Bh4 {[%clk 0:01:26]} 23. Bc1 {[%clk 0:00:03]}  Ne2+ {[%clk 0:01:13]} 24. Kh1 {[%clk 0:00:02]}  Nd4 {[%clk 0:01:06]} 25. Bf4+ {[%clk 0:00:02]}  Kb6 {[%clk 0:01:04]} 26. Bg2 {[%clk 0:00:02]}  Re2 {[%clk 0:00:57]} 27. b4 {[%clk 0:00:03]}  Bf2 {[%clk 0:00:55]} 28. bxc5+ {[%clk 0:00:03]}  Kxc5 {[%clk 0:00:56]} 29. Bf1 {[%clk 0:00:03]}  Rxa2 {[%clk 0:00:53]} 30. Rb1 {[%clk 0:00:02]}  b6 {[%clk 0:00:47]} 31. Bg5 {[%clk 0:00:02]}  Kd6 {[%clk 0:00:41]} 32. Bg2 {[%clk 0:00:02]}  Re2 {[%clk 0:00:36]} 33. Rd1 {[%clk 0:00:02]}  Re1+ {[%clk 0:00:35]} 34. Rxe1 {[%clk 0:00:02]}  Bxe1 {[%clk 0:00:36]} 35. Bf1 {[%clk 0:00:01]}  a5 {[%clk 0:00:30]} 36. Bf4+ {[%clk 0:00:01]}  Kc5 {[%clk 0:00:29]} 37. Kg2 {[%clk 0:00:02]}  a4 {[%clk 0:00:28]} 38. Bc1 {[%clk 0:00:02]}  Kb4 {[%clk 0:00:24]} 39. Bd3 {[%clk 0:00:02]}  a3 {[%clk 0:00:23]} 40. Kf1 {[%clk 0:00:03]}  a2 {[%clk 0:00:23]} 41. Bb2 {[%clk 0:00:02]}  Bc3 {[%clk 0:00:23]} 0-1


[Site "https://www.chess.com"]

[Event "Titled Tuesday Blitz February 15 Early 2022"]
[White "Bashirli, Saadat"]
[Black "Krylov, Ivan"]
[WhiteFideId "13429990"]
[BlackFideId "24128066"]
[WhiteElo "1173"]
[BlackElo "2258"]
[Result "0-1"]
[Round "09"]
[TimeControl "180+1"]
[Date "2022.02.15"]
[WhiteClock "0:00:49"]
[BlackClock "0:01:00"]

1. d4 {[%clk 0:03:00]}  d5 {[%clk 0:02:59]} 2. Bg5 {[%clk 0:03:01]}  Nf6 {[%clk 0:02:59]} 3. Nd2 {[%clk 0:02:59]}  e6 {[%clk 0:02:59]} 4. e4 {[%clk 0:02:56]}  dxe4 {[%clk 0:02:58]} 5. Nxe4 {[%clk 0:02:56]}  Be7 {[%clk 0:02:59]} 6. Bxf6 {[%clk 0:02:54]}  Bxf6 {[%clk 0:02:59]} 7. c3 {[%clk 0:02:55]}  O-O {[%clk 0:02:53]} 8. Nf3 {[%clk 0:02:53]}  b6 {[%clk 0:02:52]} 9. Bd3 {[%clk 0:02:52]}  Bb7 {[%clk 0:02:52]} 10. O-O {[%clk 0:02:51]}  Nd7 {[%clk 0:02:52]} 11. Qc2 {[%clk 0:02:47]}  c5 {[%clk 0:02:50]} 12. dxc5 {[%clk 0:02:44]}  Bxe4 {[%clk 0:02:49]} 13. Bxe4 {[%clk 0:02:43]}  Rc8 {[%clk 0:02:45]} 14. cxb6 {[%clk 0:02:35]}  Qxb6 {[%clk 0:02:46]} 15. Bxh7+ {[%clk 0:02:32]}  Kh8 {[%clk 0:02:47]} 16. Bd3 {[%clk 0:02:30]}  g6 {[%clk 0:02:46]} 17. Bxg6 {[%clk 0:02:21]}  fxg6 {[%clk 0:02:41]} 18. Qxg6 {[%clk 0:02:22]}  Qc5 {[%clk 0:02:12]} 19. Rfe1 {[%clk 0:02:12]}  Qf5 {[%clk 0:02:08]} 20. Qh6+ {[%clk 0:02:06]}  Kg8 {[%clk 0:02:06]} 21. Rad1 {[%clk 0:01:56]}  Ne5 {[%clk 0:01:57]} 22. Nxe5 {[%clk 0:01:51]}  Bxe5 {[%clk 0:01:56]} 23. f3 {[%clk 0:01:49]}  Rf6 {[%clk 0:01:45]} 24. Qh4 {[%clk 0:01:42]}  Rcf8 {[%clk 0:01:13]} 25. Re4 {[%clk 0:01:36]}  Rg6 {[%clk 0:01:09]} 26. Rde1 {[%clk 0:01:30]}  Qxf3 {[%clk 0:01:06]} 27. R4e2 {[%clk 0:01:11]}  Bc7 {[%clk 0:01:02]} 28. Qe4 {[%clk 0:01:01]}  Bb6+ {[%clk 0:01:00]} 29. Kh1 {[%clk 0:00:49]}  Qf1+ {[%clk 0:00:59]} 30. Rxf1 {[%clk 0:00:49]}  Rxf1# {[%clk 0:01:00]} 0-1


[Site "https://www.chess.com"]

[Event "Titled Tuesday Blitz February 15 Early 2022"]
[White "Bhagwat, Vinod"]
[Black "Gubanov, Oleg"]
[WhiteFideId "5005949"]
[BlackFideId "14115115"]
[WhiteElo "2115"]
[BlackElo "2080"]
[Result "0-1"]
[Round "09"]
[TimeControl "180+1"]
[Date "2022.02.15"]
[WhiteClock "0:00:01"]
[BlackClock "0:00:13"]

1. d4 {[%clk 0:03:00]}  b5 {[%clk 0:02:58]} 2. e4 {[%clk 0:03:00]}  Bb7 {[%clk 0:02:58]} 3. d5 {[%clk 0:02:54]}  Nf6 {[%clk 0:02:55]} 4. Bd3 {[%clk 0:02:48]}  e6 {[%clk 0:02:53]} 5. f3 {[%clk 0:02:38]}  exd5 {[%clk 0:02:47]} 6. exd5 {[%clk 0:02:37]}  a6 {[%clk 0:02:46]} 7. c4 {[%clk 0:02:34]}  Bb4+ {[%clk 0:02:24]} 8. Bd2 {[%clk 0:02:29]}  Qe7+ {[%clk 0:02:20]} 9. Ne2 {[%clk 0:02:20]}  bxc4 {[%clk 0:02:20]} 10. Bxc4 {[%clk 0:02:18]}  Nxd5 {[%clk 0:02:16]} 11. O-O {[%clk 0:02:07]}  Bxd2 {[%clk 0:02:15]} 12. Qxd2 {[%clk 0:02:05]}  Ne3 {[%clk 0:02:06]} 13. Rc1 {[%clk 0:01:55]}  Nxc4 {[%clk 0:02:00]} 14. Rxc4 {[%clk 0:01:53]}  d5 {[%clk 0:01:57]} 15. Rb4 {[%clk 0:01:46]}  c5 {[%clk 0:01:49]} 16. Rg4 {[%clk 0:01:41]}  f5 {[%clk 0:01:39]} 17. Rg3 {[%clk 0:01:32]}  O-O {[%clk 0:01:38]} 18. Nf4 {[%clk 0:01:21]}  d4 {[%clk 0:01:36]} 19. Nh5 {[%clk 0:01:11]}  g6 {[%clk 0:01:35]} 20. Na3 {[%clk 0:01:05]}  Qe3+ {[%clk 0:01:22]} 21. Qxe3 {[%clk 0:01:03]}  dxe3 {[%clk 0:01:23]} 22. Nf4 {[%clk 0:00:45]}  Re8 {[%clk 0:01:08]} 23. Nc4 {[%clk 0:00:42]}  Nc6 {[%clk 0:01:02]} 24. Re1 {[%clk 0:00:40]}  Rad8 {[%clk 0:00:54]} 25. h4 {[%clk 0:00:33]}  Kf7 {[%clk 0:00:36]} 26. h5 {[%clk 0:00:30]}  Rg8 {[%clk 0:00:29]} 27. hxg6+ {[%clk 0:00:26]}  hxg6 {[%clk 0:00:30]} 28. Rxe3 {[%clk 0:00:24]}  g5 {[%clk 0:00:29]} 29. Ne6 {[%clk 0:00:20]}  f4 {[%clk 0:00:29]} 30. Nxd8+ {[%clk 0:00:19]}  Rxd8 {[%clk 0:00:22]} 31. Rxg5 {[%clk 0:00:16]}  fxe3 {[%clk 0:00:22]} 32. Nxe3 {[%clk 0:00:16]}  Nd4 {[%clk 0:00:18]} 33. Rxc5 {[%clk 0:00:15]}  Re8 {[%clk 0:00:18]} 34. Ng4 {[%clk 0:00:13]}  Re7 {[%clk 0:00:17]} 35. Kf2 {[%clk 0:00:12]}  Ne6 {[%clk 0:00:17]} 36. Rf5+ {[%clk 0:00:11]}  Kg7 {[%clk 0:00:16]} 37. Re5 {[%clk 0:00:09]}  Kf7 {[%clk 0:00:15]} 38. b3 {[%clk 0:00:09]}  Rd7 {[%clk 0:00:14]} 39. Rf5+ {[%clk 0:00:07]}  Ke7 {[%clk 0:00:14]} 40. Re5 {[%clk 0:00:07]}  Rd2+ {[%clk 0:00:14]} 41. Kg3 {[%clk 0:00:07]}  Rxa2 {[%clk 0:00:15]} 42. Ne3 {[%clk 0:00:06]}  Kf6 {[%clk 0:00:14]} 43. Rh5 {[%clk 0:00:04]}  Nd4 {[%clk 0:00:14]} 44. Ng4+ {[%clk 0:00:02]}  Kg6 {[%clk 0:00:14]} 45. Rh6+ {[%clk 0:00:02]}  Kg7 {[%clk 0:00:14]} 46. Rb6 {[%clk 0:00:01]}  Bc8 {[%clk 0:00:13]} 47. Rb8 {[%clk 0:00:01]}  Bxg4 {[%clk 0:00:13]} 0-1


[Site "https://www.chess.com"]

[Event "Titled Tuesday Blitz February 15 Early 2022"]
[White "Bodnaruk, Anastasia"]
[Black "Nogerbek, Kazybek"]
[WhiteFideId "4181751"]
[BlackFideId "13710427"]
[WhiteElo "2393"]
[BlackElo "2478"]
[Result "1/2-1/2"]
[Round "09"]
[TimeControl "180+1"]
[Date "2022.02.15"]
[WhiteClock "0:00:02"]
[BlackClock "0:00:03"]

1. e4 {[%clk 0:02:53]}  c5 {[%clk 0:01:24]} 2. Nc3 {[%clk 0:02:52]}  a6 {[%clk 0:01:23]} 3. Nge2 {[%clk 0:02:51]}  d6 {[%clk 0:01:21]} 4. g3 {[%clk 0:02:48]}  b5 {[%clk 0:01:21]} 5. Bg2 {[%clk 0:02:48]}  Bb7 {[%clk 0:01:22]} 6. d4 {[%clk 0:02:49]}  cxd4 {[%clk 0:01:21]} 7. Nxd4 {[%clk 0:02:49]}  Nf6 {[%clk 0:01:15]} 8. O-O {[%clk 0:02:49]}  b4 {[%clk 0:01:11]} 9. Nd5 {[%clk 0:02:43]}  Nbd7 {[%clk 0:01:11]} 10. Re1 {[%clk 0:02:40]}  e6 {[%clk 0:01:08]} 11. Nxf6+ {[%clk 0:02:37]}  Nxf6 {[%clk 0:01:09]} 12. Bg5 {[%clk 0:02:20]}  Qa5 {[%clk 0:00:49]} 13. Qd2 {[%clk 0:02:07]}  Be7 {[%clk 0:00:27]} 14. e5 {[%clk 0:01:55]}  Bxg2 {[%clk 0:00:28]} 15. exf6 {[%clk 0:01:55]}  gxf6 {[%clk 0:00:28]} 16. Kxg2 {[%clk 0:01:43]}  Qxg5 {[%clk 0:00:24]} 17. Qxb4 {[%clk 0:01:30]}  O-O {[%clk 0:00:20]} 18. Nc6 {[%clk 0:01:24]}  Qd5+ {[%clk 0:00:20]} 19. Qe4 {[%clk 0:01:25]}  Qxe4+ {[%clk 0:00:21]} 20. Rxe4 {[%clk 0:01:25]}  Rfe8 {[%clk 0:00:22]} 21. Rg4+ {[%clk 0:01:17]}  Kh8 {[%clk 0:00:22]} 22. c4 {[%clk 0:01:10]}  f5 {[%clk 0:00:20]} 23. Rd4 {[%clk 0:01:05]}  Bf8 {[%clk 0:00:20]} 24. Rad1 {[%clk 0:01:00]}  Rec8 {[%clk 0:00:20]} 25. Na5 {[%clk 0:00:59]}  Rab8 {[%clk 0:00:20]} 26. Nb3 {[%clk 0:00:54]}  a5 {[%clk 0:00:18]} 27. R1d2 {[%clk 0:00:51]}  a4 {[%clk 0:00:18]} 28. Nc1 {[%clk 0:00:47]}  Rb4 {[%clk 0:00:18]} 29. b3 {[%clk 0:00:42]}  axb3 {[%clk 0:00:19]} 30. axb3 {[%clk 0:00:42]}  d5 {[%clk 0:00:20]} 31. Nd3 {[%clk 0:00:39]}  Rxb3 {[%clk 0:00:14]} 32. cxd5 {[%clk 0:00:39]}  Bg7 {[%clk 0:00:09]} 33. Rb4 {[%clk 0:00:37]}  Rxb4 {[%clk 0:00:05]} 34. Nxb4 {[%clk 0:00:37]}  Rd8 {[%clk 0:00:06]} 35. d6 {[%clk 0:00:18]}  Rd7 {[%clk 0:00:05]} 36. Nc6 {[%clk 0:00:17]}  Bf6 {[%clk 0:00:06]} 37. f4 {[%clk 0:00:16]}  Kg7 {[%clk 0:00:06]} 38. Kf3 {[%clk 0:00:15]}  Bc3 {[%clk 0:00:06]} 39. Rd3 {[%clk 0:00:14]}  Bb2 {[%clk 0:00:06]} 40. Ne5 {[%clk 0:00:13]}  Rd8 {[%clk 0:00:06]} 41. d7 {[%clk 0:00:12]}  Bxe5 {[%clk 0:00:06]} 42. fxe5 {[%clk 0:00:12]}  f6 {[%clk 0:00:07]} 43. Kf4 {[%clk 0:00:12]}  Kf7 {[%clk 0:00:08]} 44. h4 {[%clk 0:00:03]}  Ke7 {[%clk 0:00:08]} 45. h5 {[%clk 0:00:04]}  fxe5+ {[%clk 0:00:07]} 46. Kxe5 {[%clk 0:00:05]}  Rxd7 {[%clk 0:00:07]} 47. Rxd7+ {[%clk 0:00:04]}  Kxd7 {[%clk 0:00:08]} 48. Kf6 {[%clk 0:00:04]}  Kd6 {[%clk 0:00:07]} 49. h6 {[%clk 0:00:05]}  e5 {[%clk 0:00:06]} 50. Kxf5 {[%clk 0:00:05]}  Kd5 {[%clk 0:00:07]} 51. g4 {[%clk 0:00:05]}  e4 {[%clk 0:00:08]} 52. Kf4 {[%clk 0:00:05]}  Kd4 {[%clk 0:00:08]} 53. g5 {[%clk 0:00:05]}  e3 {[%clk 0:00:07]} 54. g6 {[%clk 0:00:06]}  e2 {[%clk 0:00:02]} 55. gxh7 {[%clk 0:00:07]}  e1=Q {[%clk 0:00:03]} 56. h8=Q+ {[%clk 0:00:07]}  Kd5 {[%clk 0:00:04]} 57. Qd8+ {[%clk 0:00:06]}  Kc6 {[%clk 0:00:04]} 58. Qf6+ {[%clk 0:00:05]}  Kd7 {[%clk 0:00:03]} 59. Qf7+ {[%clk 0:00:05]}  Kd8 {[%clk 0:00:02]} 60. Qg8+ {[%clk 0:00:05]}  Kd7 {[%clk 0:00:02]} 61. h7 {[%clk 0:00:06]}  Qf2+ {[%clk 0:00:03]} 62. Ke4 {[%clk 0:00:06]}  Qe2+ {[%clk 0:00:03]} 63. Kf5 {[%clk 0:00:06]}  Qf3+ {[%clk 0:00:03]} 64. Kg6 {[%clk 0:00:04]}  Qg4+ {[%clk 0:00:04]} 65. Kf6 {[%clk 0:00:04]}  Qf4+ {[%clk 0:00:04]} 66. Kg7 {[%clk 0:00:03]}  Qg5+ {[%clk 0:00:04]} 67. Kf8 {[%clk 0:00:04]}  Qd8+ {[%clk 0:00:04]} 68. Kf7 {[%clk 0:00:04]}  Qe7+ {[%clk 0:00:04]} 69. Kg6 {[%clk 0:00:05]}  Qe4+ {[%clk 0:00:05]} 70. Kg5 {[%clk 0:00:04]}  Qe5+ {[%clk 0:00:04]} 71. Kg6 {[%clk 0:00:05]}  Qe4+ {[%clk 0:00:04]} 72. Kg5 {[%clk 0:00:04]}  Qe5+ {[%clk 0:00:05]} 73. Kh6 {[%clk 0:00:05]}  Qh2+ {[%clk 0:00:04]} 74. Kg7 {[%clk 0:00:04]}  Qg3+ {[%clk 0:00:05]} 75. Kh8 {[%clk 0:00:04]}  Qf4 {[%clk 0:00:02]} 76. Qg7+ {[%clk 0:00:04]}  Ke8 {[%clk 0:00:02]} 77. Kg8 {[%clk 0:00:04]}  Qc4+ {[%clk 0:00:01]} 78. Kh8 {[%clk 0:00:04]}  Qf7 {[%clk 0:00:01]} 79. Qg8+ {[%clk 0:00:04]}  Qf8 {[%clk 0:00:02]} 80. Qxf8+ {[%clk 0:00:02]}  Kxf8 {[%clk 0:00:03]} 1/2-1/2


[Site "https://www.chess.com"]

[Event "Titled Tuesday Blitz February 15 Early 2022"]
[White "Boraso, Alessio"]
[Black "Kuzmin, Roman"]
[WhiteFideId "848077"]
[BlackFideId "44134932"]
[WhiteElo "2277"]
[BlackElo "1978"]
[Result "1-0"]
[Round "09"]
[TimeControl "180+1"]
[Date "2022.02.15"]
[WhiteClock "0:00:16"]
[BlackClock "0:00:19"]

1. e4 {[%clk 0:02:58]}  c5 {[%clk 0:02:59]} 2. Nc3 {[%clk 0:02:57]}  e6 {[%clk 0:02:57]} 3. g3 {[%clk 0:02:54]}  Nc6 {[%clk 0:02:54]} 4. Bg2 {[%clk 0:02:53]}  g6 {[%clk 0:02:55]} 5. d3 {[%clk 0:02:53]}  Bg7 {[%clk 0:02:56]} 6. f4 {[%clk 0:02:53]}  Nge7 {[%clk 0:02:55]} 7. Be3 {[%clk 0:02:50]}  d6 {[%clk 0:02:55]} 8. Nf3 {[%clk 0:02:50]}  O-O {[%clk 0:02:53]} 9. O-O {[%clk 0:02:51]}  b6 {[%clk 0:02:43]} 10. Qd2 {[%clk 0:02:49]}  Rb8 {[%clk 0:02:43]} 11. g4 {[%clk 0:02:44]}  f5 {[%clk 0:02:42]} 12. h3 {[%clk 0:02:40]}  d5 {[%clk 0:02:38]} 13. Ne2 {[%clk 0:02:26]}  dxe4 {[%clk 0:02:03]} 14. dxe4 {[%clk 0:02:25]}  fxe4 {[%clk 0:02:04]} 15. Ng5 {[%clk 0:02:19]}  e5 {[%clk 0:02:04]} 16. Bxe4 {[%clk 0:02:04]}  exf4 {[%clk 0:02:00]} 17. Nxf4 {[%clk 0:01:53]}  Qxd2 {[%clk 0:01:52]} 18. Bxd2 {[%clk 0:01:53]}  Bxb2 {[%clk 0:01:52]} 19. Rae1 {[%clk 0:01:42]}  Bd4+ {[%clk 0:01:44]} 20. Kg2 {[%clk 0:01:42]}  Ba6 {[%clk 0:01:28]} 21. Rf3 {[%clk 0:01:37]}  Ne5 {[%clk 0:01:28]} 22. Ra3 {[%clk 0:01:30]}  Nc4 {[%clk 0:01:15]} 23. Rxa6 {[%clk 0:01:27]}  Nxd2 {[%clk 0:01:16]} 24. Rxa7 {[%clk 0:01:27]}  Rxf4 {[%clk 0:01:13]} 25. Rxe7 {[%clk 0:01:25]}  Rf2+ {[%clk 0:01:14]} 26. Kg3 {[%clk 0:01:19]}  Nxe4+ {[%clk 0:01:11]} 27. R1xe4 {[%clk 0:01:13]}  Rxc2 {[%clk 0:01:08]} 28. Nxh7 {[%clk 0:01:07]}  Ra8 {[%clk 0:01:07]} 29. R4e6 {[%clk 0:00:48]}  Bf2+ {[%clk 0:00:58]} 30. Kf4 {[%clk 0:00:32]}  Bh4 {[%clk 0:00:33]} 31. Rxg6+ {[%clk 0:00:31]}  Kh8 {[%clk 0:00:33]} 32. Rb7 {[%clk 0:00:08]}  Re8 {[%clk 0:00:18]} 33. g5 {[%clk 0:00:07]}  Rc4+ {[%clk 0:00:15]} 34. Kf5 {[%clk 0:00:06]}  Bg3 {[%clk 0:00:14]} 35. Rh6 {[%clk 0:00:02]}  Re5+ {[%clk 0:00:09]} 36. Kf6 {[%clk 0:00:01]}  Rf4+ {[%clk 0:00:02]} 37. Kxe5 {[%clk 0:00:01]}  Rf7+ {[%clk 0:00:03]} 38. Kd5 {[%clk 0:00:01]}  Rxb7 {[%clk 0:00:03]} 39. Nf6+ {[%clk 0:00:01]}  Kg7 {[%clk 0:00:04]} 40. Rh7+ {[%clk 0:00:02]}  Kg6 {[%clk 0:00:05]} 41. Rxb7 {[%clk 0:00:03]}  Kxg5 {[%clk 0:00:06]} 42. Ne4+ {[%clk 0:00:02]}  Kf4 {[%clk 0:00:06]} 43. Nxg3 {[%clk 0:00:03]}  Kxg3 {[%clk 0:00:07]} 44. Rxb6 {[%clk 0:00:04]}  Kxh3 {[%clk 0:00:08]} 45. Rb2 {[%clk 0:00:04]}  Kg3 {[%clk 0:00:09]} 46. Rc2 {[%clk 0:00:05]}  Kf3 {[%clk 0:00:09]} 47. Rc4 {[%clk 0:00:06]}  Ke3 {[%clk 0:00:10]} 48. Rxc5 {[%clk 0:00:07]}  Kd2 {[%clk 0:00:11]} 49. Rc4 {[%clk 0:00:08]}  Kd3 {[%clk 0:00:12]} 50. Rd4+ {[%clk 0:00:09]}  Ke2 {[%clk 0:00:12]} 51. Rc4 {[%clk 0:00:09]}  Kf2 {[%clk 0:00:13]} 52. Rb4 {[%clk 0:00:09]}  Kg2 {[%clk 0:00:14]} 53. a4 {[%clk 0:00:10]}  Kg3 {[%clk 0:00:15]} 54. a5 {[%clk 0:00:11]}  Kf2 {[%clk 0:00:16]} 55. a6 {[%clk 0:00:12]}  Kf3 {[%clk 0:00:17]} 56. a7 {[%clk 0:00:13]}  Kg2 {[%clk 0:00:18]} 57. a8=Q {[%clk 0:00:14]}  Kf2 {[%clk 0:00:19]} 58. Qa3 {[%clk 0:00:15]}  Kg1 {[%clk 0:00:19]} 59. Rb2 {[%clk 0:00:16]} 1-0


[Site "https://www.chess.com"]

[Event "Titled Tuesday Blitz February 15 Early 2022"]
[White "Borisova, Ekaterina"]
[Black "Dronavalli, Harika"]
[WhiteFideId "34124184"]
[BlackFideId "5015197"]
[WhiteElo "2034"]
[BlackElo "2382"]
[Result "1-0"]
[Round "09"]
[TimeControl "180+1"]
[Date "2022.02.15"]
[WhiteClock "0:00:30"]
[BlackClock "0:00:27"]

1. d4 {[%clk 0:03:00]}  Nf6 {[%clk 0:02:57]} 2. c4 {[%clk 0:03:00]}  e6 {[%clk 0:02:57]} 3. Nc3 {[%clk 0:03:00]}  Bb4 {[%clk 0:02:57]} 4. f3 {[%clk 0:03:01]}  c5 {[%clk 0:02:56]} 5. d5 {[%clk 0:03:01]}  b5 {[%clk 0:02:56]} 6. e4 {[%clk 0:03:01]}  d6 {[%clk 0:02:56]} 7. Ne2 {[%clk 0:03:00]}  O-O {[%clk 0:02:54]} 8. Nf4 {[%clk 0:03:00]}  e5 {[%clk 0:02:48]} 9. Ne2 {[%clk 0:02:59]}  bxc4 {[%clk 0:02:47]} 10. Ng3 {[%clk 0:02:59]}  Ne8 {[%clk 0:02:46]} 11. Be2 {[%clk 0:02:48]}  Nd7 {[%clk 0:02:41]} 12. O-O {[%clk 0:02:47]}  Nb6 {[%clk 0:02:40]} 13. f4 {[%clk 0:02:47]}  exf4 {[%clk 0:02:35]} 14. Bxf4 {[%clk 0:02:47]}  Qe7 {[%clk 0:02:26]} 15. Bg4 {[%clk 0:02:41]}  Bxc3 {[%clk 0:02:21]} 16. bxc3 {[%clk 0:02:39]}  g6 {[%clk 0:02:15]} 17. Bxc8 {[%clk 0:02:11]}  Rxc8 {[%clk 0:02:14]} 18. Rb1 {[%clk 0:02:05]}  Ng7 {[%clk 0:01:58]} 19. Qg4 {[%clk 0:01:37]}  Na4 {[%clk 0:01:40]} 20. Bg5 {[%clk 0:01:22]}  f6 {[%clk 0:01:34]} 21. Bxf6 {[%clk 0:01:18]}  Qc7 {[%clk 0:01:01]} 22. h4 {[%clk 0:00:53]}  Rb8 {[%clk 0:00:35]} 23. Rxb8 {[%clk 0:00:42]}  Qxb8 {[%clk 0:00:35]} 24. h5 {[%clk 0:00:41]}  Qe8 {[%clk 0:00:35]} 25. h6 {[%clk 0:00:34]}  Rxf6 {[%clk 0:00:26]} 26. Rxf6 {[%clk 0:00:34]}  Qe7 {[%clk 0:00:27]} 27. Qc8+ {[%clk 0:00:31]}  Ne8 {[%clk 0:00:27]} 28. Re6 {[%clk 0:00:30]} 1-0


[Site "https://www.chess.com"]

[Event "Titled Tuesday Blitz February 15 Early 2022"]
[White "Brunner, Nicolas"]
[Black "Goldin, Roman"]
[WhiteFideId "620246"]
[BlackFideId "2803860"]
[WhiteElo "2372"]
[BlackElo "2312"]
[Result "1-0"]
[Round "09"]
[TimeControl "180+1"]
[Date "2022.02.15"]
[WhiteClock "0:00:44"]
[BlackClock "0:00:23"]

1. d4 {[%clk 0:03:00]}  Nf6 {[%clk 0:02:59]} 2. c4 {[%clk 0:03:00]}  c6 {[%clk 0:02:57]} 3. Nc3 {[%clk 0:02:58]}  d5 {[%clk 0:02:55]} 4. e3 {[%clk 0:02:57]}  Qb6 {[%clk 0:02:55]} 5. Nf3 {[%clk 0:02:51]}  Bg4 {[%clk 0:02:53]} 6. h3 {[%clk 0:02:50]}  Bxf3 {[%clk 0:02:52]} 7. Qxf3 {[%clk 0:02:50]}  e6 {[%clk 0:02:53]} 8. Bd3 {[%clk 0:02:44]}  Nbd7 {[%clk 0:02:52]} 9. O-O {[%clk 0:02:43]}  Be7 {[%clk 0:02:48]} 10. Rd1 {[%clk 0:02:36]}  dxc4 {[%clk 0:02:40]} 11. Bxc4 {[%clk 0:02:35]}  e5 {[%clk 0:02:37]} 12. d5 {[%clk 0:02:31]}  O-O {[%clk 0:02:25]} 13. d6 {[%clk 0:02:21]}  Bd8 {[%clk 0:02:24]} 14. e4 {[%clk 0:02:21]}  Qb4 {[%clk 0:01:57]} 15. Bb3 {[%clk 0:02:15]}  Bb6 {[%clk 0:01:39]} 16. Bg5 {[%clk 0:02:04]}  Bd4 {[%clk 0:01:33]} 17. Ne2 {[%clk 0:01:38]}  Bxb2 {[%clk 0:01:27]} 18. Rab1 {[%clk 0:01:37]}  Qa3 {[%clk 0:01:12]} 19. Ng3 {[%clk 0:01:28]}  Kh8 {[%clk 0:01:05]} 20. Nf5 {[%clk 0:01:27]}  Bd4 {[%clk 0:00:59]} 21. Nxd4 {[%clk 0:01:23]}  exd4 {[%clk 0:00:57]} 22. Rxd4 {[%clk 0:01:23]}  Ne5 {[%clk 0:00:53]} 23. Qf5 {[%clk 0:01:18]}  Nfd7 {[%clk 0:00:52]} 24. f4 {[%clk 0:01:10]}  Qc5 {[%clk 0:00:48]} 25. Rd1 {[%clk 0:01:04]}  g6 {[%clk 0:00:43]} 26. Bf6+ {[%clk 0:01:03]}  Kg8 {[%clk 0:00:44]} 27. Qg5 {[%clk 0:00:57]}  h6 {[%clk 0:00:40]} 28. Qh4 {[%clk 0:00:45]}  Nxf6 {[%clk 0:00:35]} 29. Qxf6 {[%clk 0:00:45]}  Nd7 {[%clk 0:00:23]} 30. Qxg6+ {[%clk 0:00:45]}  Kh8 {[%clk 0:00:23]} 31. Qxh6+ {[%clk 0:00:45]}  Kg8 {[%clk 0:00:23]} 32. Qg6+ {[%clk 0:00:44]}  Kh8 {[%clk 0:00:23]} 33. Bxf7 {[%clk 0:00:44]} 1-0


[Site "https://www.chess.com"]

[Event "Titled Tuesday Blitz February 15 Early 2022"]
[White "Buscar, Michael"]
[Black "Mirzanurov, Bulat"]
[WhiteFideId "2603616"]
[BlackFideId "4184521"]
[WhiteElo "2010"]
[BlackElo "2116"]
[Result "1-0"]
[Round "09"]
[TimeControl "180+1"]
[Date "2022.02.15"]
[WhiteClock "0:00:20"]
[BlackClock "0:00:02"]

1. e4 {[%clk 0:02:53]}  c5 {[%clk 0:03:00]} 2. Be2 {[%clk 0:02:49]}  e6 {[%clk 0:02:44]} 3. c3 {[%clk 0:02:45]}  d5 {[%clk 0:02:44]} 4. exd5 {[%clk 0:02:45]}  exd5 {[%clk 0:02:45]} 5. d3 {[%clk 0:02:45]}  Nf6 {[%clk 0:02:45]} 6. Nf3 {[%clk 0:02:45]}  Be7 {[%clk 0:02:45]} 7. Nbd2 {[%clk 0:02:44]}  O-O {[%clk 0:02:45]} 8. Nf1 {[%clk 0:02:44]}  Nc6 {[%clk 0:02:45]} 9. Ng3 {[%clk 0:02:45]}  d4 {[%clk 0:02:32]} 10. O-O {[%clk 0:02:45]}  Be6 {[%clk 0:02:26]} 11. Re1 {[%clk 0:02:40]}  Qc7 {[%clk 0:01:58]} 12. Bd2 {[%clk 0:02:33]}  Rad8 {[%clk 0:01:30]} 13. Qc1 {[%clk 0:02:18]}  Bd6 {[%clk 0:01:16]} 14. Nh4 {[%clk 0:02:14]}  Nd5 {[%clk 0:01:12]} 15. Bg5 {[%clk 0:01:59]}  Rde8 {[%clk 0:01:02]} 16. Bf1 {[%clk 0:01:58]}  Bf4 {[%clk 0:00:45]} 17. Bxf4 {[%clk 0:01:58]}  Nxf4 {[%clk 0:00:46]} 18. Ne4 {[%clk 0:01:28]}  b6 {[%clk 0:00:31]} 19. Ng5 {[%clk 0:01:22]}  h6 {[%clk 0:00:17]} 20. Nxe6 {[%clk 0:01:20]}  Rxe6 {[%clk 0:00:15]} 21. Qd2 {[%clk 0:01:19]}  Rfe8 {[%clk 0:00:10]} 22. g3 {[%clk 0:01:17]}  Ng6 {[%clk 0:00:09]} 23. Nxg6 {[%clk 0:01:14]}  fxg6 {[%clk 0:00:09]} 24. Bg2 {[%clk 0:01:11]}  Ne5 {[%clk 0:00:08]} 25. Bd5 {[%clk 0:01:10]}  Qd6 {[%clk 0:00:07]} 26. c4 {[%clk 0:00:38]}  Kh8 {[%clk 0:00:06]} 27. f4 {[%clk 0:00:25]}  Rf6 {[%clk 0:00:02]} 28. fxe5 {[%clk 0:00:23]}  Rxe5 {[%clk 0:00:03]} 29. Rxe5 {[%clk 0:00:20]}  Qxe5 {[%clk 0:00:04]} 30. Re1 {[%clk 0:00:20]}  Qf5 {[%clk 0:00:03]} 31. Qe2 {[%clk 0:00:20]}  Kh7 {[%clk 0:00:02]} 32. Be4 {[%clk 0:00:19]}  Qg5 {[%clk 0:00:01]} 33. Rf1 {[%clk 0:00:19]}  h5 {[%clk 0:00:02]} 34. Rxf6 {[%clk 0:00:19]}  Qxf6 {[%clk 0:00:03]} 35. Qf2 {[%clk 0:00:20]}  Qe5 {[%clk 0:00:03]} 36. Qf3 {[%clk 0:00:20]}  Qg5 {[%clk 0:00:03]} 37. h4 {[%clk 0:00:20]}  Qc1+ {[%clk 0:00:03]} 38. Kg2 {[%clk 0:00:20]}  Qxb2+ {[%clk 0:00:04]} 39. Kh3 {[%clk 0:00:20]}  Qxa2 {[%clk 0:00:04]} 40. Qxh5+ {[%clk 0:00:20]}  Kg8 {[%clk 0:00:03]} 41. Qxg6 {[%clk 0:00:20]}  Qf2 {[%clk 0:00:03]} 42. Bd5+ {[%clk 0:00:20]}  Kh8 {[%clk 0:00:03]} 43. Be4 {[%clk 0:00:20]}  Qf1+ {[%clk 0:00:02]} 44. Kg4 {[%clk 0:00:19]}  Qe2+ {[%clk 0:00:02]} 45. Kf4 {[%clk 0:00:20]}  Qf2+ {[%clk 0:00:02]} 46. Ke5 {[%clk 0:00:20]} 1-0


[Site "https://www.chess.com"]